bitfinex-derivatives/quotes_SOLF0:USTF0_20250516
["timestamp","ask_amount","ask_price","bid_price","bid_amount"]
[1747371540617,5.8159,171.9,171.87,5.8169]
[1747371540814,5.8159,171.9,171.86,5.8172]
[1747371542020,64.6957,171.91,171.87,5.8169]
[1747371542213,58.88,171.91,171.82,65.78957109]
[1747371542714,58.88,171.91,171.88,5.8165]
[1747371543321,58.86,171.92,171.82,65.78957109]
[1747371544018,64.6753,171.92,171.89,5.8162]
[1747371545228,64.6753,171.92,171.88,5.8165]
[1747371546321,5.8153,171.92,171.89,5.8162]
[1747371546725,188.40925017,171.93,171.82,65.78957109]
[1747371546924,58.86,171.92,171.9,5.8157]
[1747371547723,188.40925017,171.93,171.91,5.8156]
[1747371547920,188.40925017,171.93,171.86,58.92]
[1747371548328,188.40925017,171.93,171.92,5.8153]
[1747371550221,188.40925017,171.93,171.91,5.8155]
[1747371559534,188.40925017,171.93,171.9,5.8158]
[1747371559722,194.22425017,171.93,171.9,5.8158]
[1747371559928,194.22425017,171.93,171.87,4.38479773]
[1747371560335,194.22425017,171.93,171.89,5.816]
[1747371561729,194.22425017,171.93,171.9,5.8158]
[1747371561938,188.40925017,171.93,171.86,68.96129773]
[1747371562737,5.8158,171.91,171.87,5.8167]
[1747371562935,5.8158,171.91,171.86,68.96129773]
[1747371563137,188.40925017,171.93,171.86,68.96129773]
[1747371563530,188.40925017,171.93,171.88,4.38479773]
[1747371564539,188.40925017,171.93,171.92,5.8153]
[1747371578639,58.74,171.96,171.95,5.8142]
[1747371580747,58.74,171.96,171.94,5.8145]
[1747371581450,63.12479773,171.96,171.9,58.82]
[1747371581750,63.12479773,171.96,171.88,4.38479773]
[1747371581954,5.8148,171.94,171.9,5.8157]
[1747371582852,5.8143,171.95,171.9,4.38479773]
[1747371583851,5.8146,171.94,171.91,5.8155]
[1747371584445,5.8146,171.94,171.9,4.38479773]
[1747371584854,5.8143,171.95,171.91,5.8155]
[1747371586351,64.554,171.96,171.92,5.8153]
[1747371586548,5.814,171.96,171.9,4.38479773]
[1747371586750,58.72,171.96,171.9,4.38479773]
[1747371587554,58.72,171.96,171.92,5.815]
[1747371589453,58.72,171.96,171.93,5.8149]
[1747371590753,64.534,171.96,171.92,5.8152]
[1747371593458,64.534,171.96,171.93,5.8149]
[1747371594356,5.814,171.96,171.93,5.8149]
[1747371596459,5.814,171.96,171.92,5.8152]
[1747371598756,58.7,171.97,171.9,4.38479773]
[1747371598960,58.68,171.98,171.92,4.38479773]
[1747371599560,64.4933,171.98,171.92,4.38479773]
[1747371599758,5.8133,171.98,171.92,4.38479773]
[1747371600157,69.01769773,171.99,171.92,4.38479773]
[1747371600361,123.3129,171.99,171.94,4.38479773]
[1747371600561,4.38479773,172.01,171.94,4.38479773]
[1747371600764,63.06479773,172.01,171.94,4.38479773]
[1747371600965,5.8127,172.0,171.96,5.8139]
[1747371602467,63.06479773,172.01,171.92,10.03879773]
[1747371602866,5.8136,171.97,171.94,5.8146]
[1747371604468,5.8136,171.97,171.93,5.8148]
[1747371604771,5.8141,171.96,171.92,4.38479773]
[1747371605368,5.8141,171.96,171.92,10.19979773]
[1747371605566,64.4736,171.97,171.92,4.38479773]
[1747371605967,58.66,171.97,171.92,4.38479773]
[1747371606165,58.66,171.97,171.94,5.8145]
[1747371606368,58.66,171.97,171.92,4.38479773]
[1747371607464,58.66,171.97,171.94,5.8143]
[1747371608763,58.66,171.97,171.92,4.38479773]
[1747371608969,58.66,171.97,171.94,4.38479773]
[1747371609170,58.72,171.99,171.94,4.38479773]
[1747371609863,58.72,172.02,171.96,4.38479773]
[1747371610064,58.64,172.01,171.96,4.38479773]
[1747371610271,117.36,172.02,171.96,4.38479773]
[1747371610865,5.8125,172.01,171.97,5.8133]
[1747371611071,63.10479773,172.05,171.98,4.38479773]
[1747371611272,58.64,172.03,171.98,4.38479773]
[1747371611968,64.4513,172.04,172.0,5.8125]
[1747371612373,64.4513,172.04,172.01,5.8122]
[1747371612568,58.64,172.04,171.98,4.38479773]
[1747371612763,63.00479773,172.07,172.0,4.38479773]
[1747371612967,58.64,172.06,172.02,5.8119]
[1747371613175,63.00479773,172.07,172.0,4.38479773]
[1747371613472,117.26,172.07,171.99,58.62]
[1747371613674,123.0702,172.07,171.99,58.62]
[1747371614172,123.0702,172.07,172.03,5.8115]
[1747371614369,123.0702,172.07,171.99,58.62]
[1747371614569,5.8106,172.06,171.99,58.62]
[1747371614770,117.26,172.07,172.01,5.8119]
[1747371615175,5.8109,172.05,172.01,5.8119]
[1747371615375,117.26,172.07,172.02,5.8119]
[1747371616473,117.26,172.07,172.01,5.8121]
[1747371616872,117.24,172.07,172.01,5.8121]
[1747371617780,5.8108,172.06,172.02,5.8118]
[1747371619077,5.8109,172.05,172.0,5.8123]
[1747371619572,117.24,172.07,172.0,5.8123]
[1747371619779,5.8111,172.05,172.0,5.8123]
[1747371620279,5.8111,172.05,172.01,5.8121]
[1747371622781,5.8112,172.04,172.0,5.8125]
[1747371622979,117.24,172.07,171.99,58.62]
[1747371623380,5.8114,172.04,171.99,64.4328]
[1747371623981,5.8116,172.03,171.99,64.4328]
[1747371624783,5.8113,172.04,171.99,64.4328]
[1747371624982,117.24,172.07,171.99,58.62]
[1747371625282,117.24,172.07,171.98,64.2338]
[1747371625483,5.8106,172.06,171.98,64.2338]
[1747371625674,5.8106,172.06,172.01,5.812]
[1747371626480,123.0102,172.07,172.03,5.8115]
[1747371626676,64.3902,172.07,172.03,5.8115]
[1747371626876,5.8102,172.07,172.03,5.8115]
[1747371627681,174.84512069,172.1,171.98,64.2338]
[1747371627883,58.58,172.09,171.98,64.2338]
[1747371628074,58.58,172.09,172.0,6.84141338]
[1747371628276,58.58,172.09,172.0,65.42141338]
[1747371628681,5.8099,172.08,172.0,65.42141338]
[1747371629282,5.8099,172.08,172.03,5.8113]
[1747371629677,5.8099,172.08,172.0,65.42141338]
[1747371629878,5.8099,172.08,172.04,5.8109]
[1747371632883,233.44512069,172.1,172.05,5.8106]
[1747371633189,58.56,172.09,172.05,5.8106]
[1747371634688,58.56,172.09,172.06,5.8104]
[1747371635081,174.84512069,172.1,172.02,58.6]
[1747371635283,174.84512069,172.1,172.06,5.8102]
[1747371635486,5.8089,172.11,172.06,5.8102]
[1747371635790,5.8089,172.11,172.07,5.8101]
[1747371635985,5.8086,172.12,172.03,6.84141338]
[1747371636191,5.8086,172.12,172.04,58.54]
[1747371636489,5.8086,172.12,172.04,64.4455]
[1747371636691,58.54,172.13,172.09,5.8095]
[1747371637084,62.3419,172.17,172.06,65.44141338]
[1747371637289,58.54,172.16,172.06,65.44141338]
[1747371637789,5.8069,172.17,172.13,5.8081]
[1747371638093,64.3469,172.17,172.13,5.8081]
[1747371638491,5.8069,172.17,172.14,5.8078]
[1747371638992,122.9466,172.18,172.14,5.8078]
[1747371639390,64.3466,172.18,172.14,5.8078]
[1747371640196,5.8062,172.19,172.15,5.8073]
[1747371640693,58.52,172.2,172.1,64.2784]
[1747371641093,5.8066,172.18,172.14,5.8076]
[1747371641296,58.52,172.2,172.1,64.2784]
[1747371641493,60.3965,172.21,172.1,64.2784]
[1747371641792,64.326,172.2,172.15,5.8073]
[1747371642594,64.326,172.2,172.16,5.8071]
[1747371644092,5.806,172.2,172.16,5.8071]
[1747371644799,122.8856,172.21,172.16,5.8071]
[1747371645099,58.48,172.24,172.14,58.5]
[1747371645285,58.5,172.23,172.14,58.5]
[1747371645488,58.5,172.23,172.17,5.8066]
[1747371645793,58.5,172.23,172.14,58.5]
[1747371646092,5.8058,172.21,172.16,5.807]
[1747371647195,5.8058,172.2,172.16,5.807]
[1747371647394,58.48,172.24,172.14,58.5]
[1747371647596,58.48,172.23,172.14,58.5]
[1747371647795,62.2897,172.23,172.14,58.5]
[1747371647999,62.2897,172.23,172.15,5.8074]
[1747371648297,5.806,172.2,172.15,5.8074]
[1747371648498,5.806,172.2,172.14,58.5]
[1747371649100,5.8056,172.21,172.14,58.5]
[1747371649689,5.8056,172.21,172.17,5.8066]
[1747371649997,64.2852,172.22,172.14,58.5]
[1747371650198,58.48,172.22,172.17,5.8065]
[1747371651800,64.2854,172.22,172.17,5.8065]
[1747371653403,5.8054,172.22,172.17,5.8065]
[1747371653602,64.2654,172.22,172.17,5.8065]
[1747371654502,64.2654,172.22,172.18,5.8064]
[1747371655004,64.2649,172.23,172.14,58.5]
[1747371655393,64.2649,172.23,172.19,5.8061]
[1747371655805,5.8049,172.23,172.19,5.8061]
[1747371656004,64.2649,172.23,172.19,5.8061]
[1747371657106,5.8051,172.22,172.19,5.8061]
[1747371657402,58.46,172.23,172.19,5.8061]
[1747371658105,64.2649,172.23,172.2,5.8058]
[1747371658309,58.46,172.23,172.2,5.8058]
[1747371658704,64.2648,172.23,172.19,5.806]
[1747371658906,5.8048,172.23,172.19,5.806]
[1747371659806,65.32141338,172.26,172.19,5.806]
[1747371660100,58.44,172.23,172.19,5.806]
[1747371660405,5.8046,172.24,172.2,5.8058]
[1747371660600,58.44,172.23,172.2,5.8058]
[1747371660804,58.44,172.24,172.15,6.84141338]
[1747371661204,58.44,172.24,172.16,5.6924]
[1747371661606,58.44,172.24,172.21,5.8052]
[1747371661803,58.44,172.24,172.18,58.46]
[1747371662204,273.19550108,172.25,172.22,5.8048]
[1747371663307,273.19550108,172.25,172.18,65.30141338]
[1747371663901,273.19550108,172.25,172.24,5.8045]
[1747371666210,501.74,172.38,172.22,58.46]
[1747371666413,58.42,172.33,172.24,6.84141338]
[1747371667021,5.8019,172.32,172.28,5.8031]
[1747371667223,5.8019,172.32,172.24,6.84141338]
[1747371667224,58.46,172.35,172.27,6.84141338]
[1747371667519,116.86,172.35,172.27,5.8032]
[1747371667714,116.86,172.35,172.27,64.2632]
[1747371667913,116.86,172.35,172.27,5.8032]
[1747371668217,5.8021,172.31,172.26,64.2637]
[1747371668614,116.86,172.35,172.26,58.46]
[1747371669620,5.8017,172.33,172.28,5.8031]
[1747371669915,116.86,172.35,172.26,58.46]
[1747371670120,5.802,172.32,172.26,64.2637]
[1747371670420,58.4,172.31,172.23,6.84141338]
[1747371670618,58.4,172.31,172.24,58.44]
[1747371670918,64.2022,172.31,172.24,58.44]
[1747371671222,58.4,172.31,172.23,65.28141338]
[1747371671419,5.8025,172.3,172.23,65.28141338]
[1747371671616,58.4,172.31,172.23,65.28141338]
[1747371672220,58.4,172.31,172.26,5.8037]
[1747371672419,58.4,172.31,172.23,65.28141338]
[1747371672814,58.4,172.31,172.27,5.8032]
[1747371673015,58.4,172.31,172.23,65.28141338]
[1747371673417,58.38,172.33,172.24,58.38]
[1747371673822,5.8014,172.34,172.29,5.8027]
[1747371674024,58.38,172.34,172.27,58.38]
[1747371674228,58.38,172.34,172.31,5.8018]
[1747371674622,58.38,172.35,172.31,5.8018]
[1747371675332,5.8009,172.35,172.31,5.8018]
[1747371675520,1.9067,172.37,172.32,5.8018]
[1747371676631,58.38,172.37,172.29,6.84141338]
[1747371677133,64.1598,172.38,172.34,5.8011]
[1747371677330,122.5198,172.38,172.34,5.8011]
[1747371677534,122.5198,172.38,172.29,6.84141338]
[1747371678532,122.5198,172.38,172.33,5.8012]
[1747371679036,5.8002,172.37,172.33,5.8012]
[1747371679234,116.72,172.38,172.33,5.8012]
[1747371679436,116.72,172.38,172.32,5.8017]
[1747371680036,116.72,172.38,172.33,5.8014]
[1747371680339,116.72,172.38,172.29,6.84141338]
[1747371680536,58.36,172.38,172.34,5.8008]
[1747371680727,58.36,172.41,172.34,5.8008]
[1747371680931,485.22797043,172.4,172.34,5.8008]
[1747371681341,5.8,172.38,172.34,5.8008]
[1747371681637,485.22797043,172.4,172.35,5.8006]
[1747371681937,485.22797043,172.4,172.31,58.36]
[1747371682438,485.22797043,172.4,172.19,1.00983721]
[1747371682635,6.84141338,172.38,172.23,6.84141338]
[1747371682833,6.84141338,172.35,172.2,123.54141338]
[1747371683034,5.8027,172.3,172.25,5.8039]
[1747371683336,58.34,172.3,172.23,6.84141338]
[1747371683538,5.8015,172.33,172.29,5.8027]
[1747371683735,58.34,172.32,172.26,6.84141338]
[1747371683931,1.9278,172.37,172.26,6.84141338]
[1747371684127,58.36,172.35,172.26,6.84141338]
[1747371684332,0.9,172.43,172.29,6.84141338]
[1747371684539,116.72,172.39,172.3,58.36]
[1747371684740,5.8003,172.37,172.3,58.36]
[1747371684938,116.72,172.39,172.3,58.36]
[1747371685841,116.72,172.39,172.31,5.8019]
[1747371686042,116.72,172.39,172.27,58.36]
[1747371686231,5.8013,172.34,172.29,5.8025]
[1747371686432,58.34,172.35,172.29,5.8025]
[1747371686637,58.34,172.35,172.27,58.36]
[1747371686834,116.7,172.35,172.27,64.1632]
[1747371687030,116.7,172.35,172.25,5.8004]
[1747371687031,116.7,172.35,172.25,3.879]
[1747371687241,5.803,172.29,172.25,5.8039]
[1747371687740,5.8032,172.28,172.24,64.1645]
[1747371687936,58.34,172.3,172.21,58.36]
[1747371688342,5.8037,172.27,172.22,5.8051]
[1747371689144,5.8038,172.26,172.21,58.36]
[1747371690042,5.8035,172.27,172.22,5.8051]
[1747371690243,5.8035,172.27,172.21,58.36]
[1747371690543,58.34,172.3,172.21,58.36]
[1747371690744,58.34,172.29,172.21,58.36]
[1747371691645,5.8038,172.26,172.22,5.805]
[1747371692146,58.34,172.29,172.21,58.36]
[1747371692345,5.8035,172.27,172.22,5.8049]
[1747371692645,58.34,172.29,172.21,58.36]
[1747371693345,58.34,172.29,172.25,5.8039]
[1747371693647,58.34,172.29,172.21,58.36]
[1747371694643,58.34,172.29,172.23,5.8047]
[1747371695045,58.34,172.29,172.24,5.8044]
[1747371695247,58.34,172.29,172.19,1.96]
[1747371695545,58.34,172.29,172.19,67.16141338]
[1747371695946,5.8032,172.28,172.19,67.16141338]
[1747371696139,5.8032,172.28,172.25,5.8041]
[1747371696337,58.34,172.29,172.25,5.8041]
[1747371696846,58.36,172.31,172.19,67.16141338]
[1747371697041,58.34,172.3,172.22,6.84141338]
[1747371697947,64.1427,172.3,172.25,5.8039]
[1747371698147,64.1427,172.3,172.22,6.84141338]
[1747371698551,58.34,172.3,172.26,5.8035]
[1747371699249,64.1425,172.3,172.26,5.8035]
[1747371699450,5.8025,172.3,172.26,5.8035]
[1747371699752,64.1425,172.3,172.26,5.8035]
[1747371701355,58.34,172.3,172.27,5.8034]
[1747371701555,58.34,172.3,172.22,6.84141338]
[1747371701746,58.36,172.31,172.22,6.84141338]
[1747371701942,58.34,172.31,172.22,6.84141338]
[1747371702556,58.34,172.31,172.28,5.8029]
[1747371703856,58.34,172.31,172.29,5.8028]
[1747371704057,64.1418,172.32,172.29,5.8028]
[1747371704447,64.1418,172.32,172.28,5.803]
[1747371704854,58.34,172.32,172.29,5.8027]
[1747371705855,64.1612,172.34,172.25,58.36]
[1747371706048,58.34,172.33,172.25,123.54141338]
[1747371706454,116.7,172.34,172.25,123.54141338]
[1747371706650,122.5011,172.34,172.25,123.54141338]
[1747371707152,5.8007,172.36,172.25,123.54141338]
[1747371707361,58.34,172.35,172.26,5.601]
[1747371707860,58.34,172.35,172.31,5.8019]
[1747371708061,64.1409,172.35,172.31,5.8019]
[1747371708363,58.34,172.35,172.26,5.601]
[1747371710263,64.1408,172.35,172.31,5.8019]
[1747371710661,58.34,172.35,172.31,5.8019]
[1747371710861,58.34,172.35,172.32,5.8017]
[1747371711158,58.34,172.35,172.26,5.601]
[1747371711462,64.141,172.35,172.31,5.802]
[1747371711661,64.121,172.35,172.31,5.802]
[1747371711850,64.121,172.35,172.26,5.601]
[1747371712056,58.32,172.37,172.26,5.601]
[1747371712262,116.64,172.37,172.28,6.84141338]
[1747371712462,116.64,172.37,172.29,58.32]
[1747371712858,6.84141338,172.41,172.29,58.32]
[1747371713052,986.58797043,172.4,172.29,116.64]
[1747371713355,5.7995,172.39,172.35,5.8005]
[1747371713563,58.32,172.39,172.29,116.64]
[1747371713863,58.32,172.39,172.36,5.8004]
[1747371714165,485.18797043,172.4,172.31,6.84141338]
[1747371714361,58.32,172.39,172.38,5.7997]
[1747371714563,426.86797043,172.4,172.38,5.7997]
[1747371714962,426.86797043,172.4,172.39,5.7994]
[1747371715270,58.32,172.42,172.39,5.7994]
[1747371715652,5.7978,172.44,172.4,5.799]
[1747371715958,58.32,172.45,172.37,58.32]
[1747371716159,64.1174,172.45,172.4,5.7988]
[1747371716465,64.1174,172.45,172.37,58.32]
[1747371716659,64.1174,172.45,172.41,5.7985]
[1747371717066,5.7974,172.45,172.41,5.7985]
[1747371717271,58.32,172.45,172.42,5.7984]
[1747371717556,58.32,172.45,172.37,65.16141338]
[1747371718064,64.1177,172.45,172.41,5.7985]
[1747371718259,58.32,172.45,172.37,65.16141338]
[1747371718759,58.32,172.45,172.37,123.46141338]
[1747371719063,58.32,172.45,172.42,5.7981]
[1747371719263,58.3,172.46,172.38,2.0017]
[1747371719864,58.3,172.46,172.42,5.7982]
[1747371720466,58.3,172.46,172.38,2.0017]
[1747371721562,64.0973,172.46,172.41,5.7987]
[1747371721766,58.3,172.46,172.41,5.7987]
[1747371722568,64.0971,172.46,172.41,5.7987]
[1747371722765,58.3,172.46,172.42,5.7983]
[1747371722962,58.28,172.46,172.38,2.0017]
[1747371723968,58.28,172.46,172.41,5.7985]
[1747371724171,58.28,172.46,172.38,2.0017]
[1747371724967,5.7981,172.43,172.38,2.0017]
[1747371725166,58.28,172.46,172.38,2.0017]
[1747371726169,58.28,172.47,172.43,5.798]
[1747371727169,58.28,172.47,172.38,5.6769]
[1747371727773,64.077,172.47,172.38,5.6769]
[1747371729673,58.28,172.47,172.41,5.7986]
[1747371729973,58.28,172.47,172.38,5.6769]
[1747371731479,58.28,172.47,172.43,5.798]
[1747371731776,58.28,172.47,172.38,5.6769]
[1747371731980,5.7973,172.46,172.41,5.7987]
[1747371732780,5.7974,172.45,172.41,5.7987]
[1747371733167,58.28,172.45,172.34,58.28]
[1747371733375,6.84141338,172.42,172.31,58.28]
[1747371733674,116.54,172.41,172.31,58.28]
[1747371733875,5.8001,172.37,172.32,5.8017]
[1747371734079,58.26,172.37,172.31,58.28]
[1747371734584,116.52,172.37,172.28,559.64]
[1747371734879,116.52,172.37,172.28,58.26]
[1747371735081,116.52,172.37,172.29,5.8025]
[1747371735385,116.52,172.37,172.28,58.26]
[1747371735582,5.8013,172.34,172.28,64.0628]
[1747371735876,58.28,172.33,172.28,64.0628]
[1747371736082,58.28,172.34,172.28,58.26]
[1747371737185,58.28,172.34,172.32,5.8017]
[1747371737390,2.0064,172.42,172.28,58.26]
[1747371737586,116.54,172.41,172.28,58.26]
[1747371737780,5.7998,172.38,172.28,58.26]
[1747371738084,58.28,172.37,172.3,6.84141338]
[1747371738476,58.28,172.39,172.3,65.12141338]
[1747371738884,58.28,172.39,172.34,5.8008]
[1747371739380,58.28,172.39,172.32,58.26]
[1747371739577,58.28,172.39,172.33,5.8014]
[1747371739887,5.7998,172.38,172.33,5.8014]
[1747371740282,64.0798,172.38,172.33,5.8014]
[1747371740586,64.0798,172.38,172.34,5.801]
[1747371741987,5.8001,172.37,172.32,58.26]
[1747371742687,58.28,172.38,172.29,60.2298]
[1747371743390,5.8005,172.36,172.31,5.8019]
[1747371743586,58.28,172.38,172.29,60.2298]
[1747371743887,5.8014,172.34,172.29,64.0825]
[1747371744078,64.0814,172.34,172.29,64.0825]
[1747371744279,58.28,172.34,172.29,5.8025]
[1747371744686,64.0811,172.34,172.29,5.8025]
[1747371744986,64.0811,172.34,172.27,1.9726]
[1747371745478,5.8014,172.33,172.27,1.9726]
[1747371745783,58.28,172.34,172.26,58.28]
[1747371746381,5.8014,172.33,172.28,5.8029]
[1747371746584,58.28,172.34,172.26,58.28]
[1747371747186,58.28,172.34,172.3,5.8022]
[1747371747783,58.28,172.34,172.26,58.28]
[1747371748084,58.28,172.34,172.27,6.84141338]
[1747371748485,64.0805,172.36,172.27,6.84141338]
[1747371748787,58.28,172.36,172.27,6.84141338]
[1747371748978,58.28,172.36,172.35,5.8008]
[1747371749181,58.28,172.38,172.35,5.8008]
[1747371749486,58.28,172.38,172.34,5.801]
[1747371749690,58.28,172.38,172.3,65.12141338]
[1747371749888,58.28,172.38,172.3,58.28]
[1747371750088,58.28,172.38,172.3,64.0824]
[1747371750289,58.28,172.38,172.3,5.8024]
[1747371750583,5.8006,172.36,172.3,5.8024]
[1747371750790,58.28,172.36,172.3,5.8024]
[1747371750986,58.28,172.36,172.29,5.8027]
[1747371751191,58.28,172.36,172.27,58.28]
[1747371751396,1.9177,172.35,172.24,65.12141338]
[1747371751692,58.28,172.34,172.24,65.12141338]
[1747371752296,5.8019,172.32,172.27,5.8032]
[1747371753494,5.8019,172.32,172.28,5.803]
[1747371753994,5.8015,172.33,172.28,5.803]
[1747371754196,58.28,172.34,172.24,65.12141338]
[1747371754597,64.0811,172.34,172.29,5.8025]
[1747371755398,64.0811,172.34,172.3,5.8024]
[1747371756098,5.8015,172.33,172.24,65.12141338]
[1747371757098,5.8019,172.32,172.24,65.12141338]
[1747371757399,58.28,172.34,172.29,5.8027]
[1747371757899,64.0812,172.34,172.29,5.8027]
[1747371758198,64.0812,172.34,172.3,5.8024]
[1747371759200,1.9177,172.35,172.24,65.12141338]
[1747371759403,58.28,172.36,172.27,6.84141338]
[1747371759703,5.7995,172.39,172.28,58.3]
[1747371759903,116.6,172.38,172.28,62.1282]
[1747371760307,122.3998,172.38,172.34,5.8008]
[1747371760611,116.6,172.38,172.34,5.8008]
[1747371760906,116.6,172.38,172.34,5.801]
[1747371761512,116.6,172.38,172.35,5.8007]
[1747371763016,116.6,172.38,172.34,5.801]
[1747371763610,58.3,172.38,172.35,5.8007]
[1747371763811,58.3,172.37,172.28,62.1282]
[1747371765016,64.1002,172.37,172.28,62.1282]
[1747371765517,58.3,172.37,172.28,62.1282]
[1747371766515,5.801,172.35,172.31,5.8019]
[1747371767621,5.8006,172.36,172.32,5.8017]
[1747371767918,58.3,172.37,172.28,62.1282]
[1747371768319,64.1002,172.37,172.33,5.8012]
[1747371768508,58.3,172.37,172.28,62.1282]
[1747371768820,5.8008,172.35,172.31,5.8018]
[1747371769019,58.3,172.37,172.28,58.3]
[1747371769415,58.3,172.37,172.25,60.1499]
[1747371769617,5.8012,172.34,172.25,60.1499]
[1747371769816,58.28,172.33,172.25,60.1499]
[1747371770921,58.28,172.35,172.27,6.84141338]
[1747371771122,58.28,172.35,172.34,5.8011]
[1747371771323,58.28,172.38,172.29,58.28]
[1747371771621,58.28,172.38,172.35,5.8005]
[1747371771822,58.28,172.38,172.3,6.84141338]
[1747371772821,58.28,172.4,172.3,6.84141338]
[1747371773218,5.7989,172.41,172.3,6.84141338]
[1747371773412,64.0789,172.41,172.3,6.84141338]
[1747371774426,64.0789,172.41,172.37,5.8]
[1747371774925,58.28,172.4,172.33,58.28]
[1747371775127,58.28,172.41,172.33,65.12141338]
[1747371775524,58.28,172.41,172.38,5.7995]
[1747371775723,58.28,172.41,172.33,65.12141338]
[1747371775924,58.28,172.41,172.33,67.04571338]
[1747371776128,58.28,172.42,172.33,67.04571338]
[1747371776324,116.56,172.42,172.33,67.04571338]
[1747371776828,58.28,172.42,172.33,67.04571338]
[1747371777030,58.28,172.43,172.33,67.04571338]
[1747371778022,58.28,172.43,172.4,5.799]
[1747371779032,192.28383228,172.44,172.4,5.799]
[1747371779429,58.28,172.43,172.4,5.799]
[1747371780229,58.28,172.43,172.41,5.7987]
[1747371780428,186.48603228,172.44,172.35,1.8352]
[1747371780729,58.26,172.47,172.44,5.7975]
[1747371780920,58.26,172.46,172.44,5.7975]
[1747371781426,58.26,172.46,172.42,5.7981]
[1747371781627,58.26,172.46,172.37,58.26]
[1747371782725,5.7977,172.45,172.37,58.26]
[1747371783233,5.7979,172.44,172.4,5.799]
[1747371783730,58.26,172.46,172.4,5.799]
[1747371784028,5.7984,172.43,172.39,5.7994]
[1747371784229,58.26,172.46,172.37,58.26]
[1747371784528,5.7988,172.41,172.37,64.0599]
[1747371784731,58.26,172.41,172.35,1.8352]
[1747371785334,58.26,172.41,172.38,5.7997]
[1747371788036,64.0588,172.41,172.38,5.7997]
[1747371788338,58.26,172.41,172.38,5.7997]
[1747371788638,58.26,172.41,172.35,1.8352]
[1747371788830,58.26,172.41,172.34,60.1481]
[1747371788831,58.26,172.41,172.34,58.26]
[1747371789136,5.8001,172.38,172.33,5.8014]
[1747371789331,58.26,172.37,172.33,5.8014]
[1747371789731,58.26,172.37,172.34,5.801]
[1747371790233,58.26,172.37,172.31,64.0619]
[1747371790535,58.26,172.37,172.28,62.1213]
[1747371791631,5.8011,172.34,172.3,5.8022]
[1747371791830,58.26,172.33,172.28,58.26]
[1747371792237,64.0615,172.33,172.29,5.8026]
[1747371792432,58.26,172.33,172.24,3.708]
[1747371793336,58.26,172.33,172.24,1.8653]
[1747371793531,58.26,172.33,172.22,65.10141338]
[1747371794832,64.0616,172.33,172.28,5.8029]
[1747371795141,58.26,172.33,172.22,65.10141338]
[1747371795439,58.26,172.33,172.29,5.8025]
[1747371795643,58.26,172.33,172.22,65.10141338]
[1747371795939,58.28,172.32,172.25,6.84141338]
[1747371796142,58.28,172.33,172.26,58.26]
[1747371796443,58.28,172.33,172.31,5.8018]
[1747371797439,58.28,172.33,172.27,1.9715]
[1747371798136,58.26,172.38,172.28,6.84141338]
[1747371798334,58.28,172.36,172.28,6.84141338]
[1747371798536,58.28,172.36,172.35,5.8005]